fUST/lending_fUST_20250301
["ID","MTS","AMOUNT","RATE_DAILY","PERIOD"]
[354906657,1740811838843,-1826.34,0.00038547,5]
[354906659,1740811838852,-1664.15,0.00038547,2]
[354906661,1740811838862,-2301.74,0.00038547,2]
[354906663,1740811838871,-1601.23,0.00038547,2]
[354906665,1740811838881,-499.999998,0.000386,2]
[354906667,1740811838890,-500.0,0.00038673,5]
[354906669,1740811838900,-500.0,0.00038673,5]
[354906671,1740811838910,-150.17127012,0.00038673,5]
[354906673,1740811838919,-500.0,0.00038673,5]
[354906675,1740811838929,-500.0,0.00038673,5]
[354906677,1740811838939,-500.0,0.00038673,5]
[354906679,1740811838949,-500.0,0.00038673,5]
[354906681,1740811838959,-500.0,0.00038683,2]
[354906683,1740811838968,-500.0,0.00038683,2]
[354906685,1740811838978,-500.0,0.00038683,2]
[354906687,1740811838988,-500.0,0.00038683,2]
[354906688,1740811838998,-500.0,0.00038683,2]
[354906690,1740811839008,-500.0,0.00038683,2]
[354906697,1740811839072,-500.0,0.00038683,2]
[354906699,1740811839082,-500.0,0.00038683,2]
[354906701,1740811839092,-500.0,0.00038683,2]
[354906703,1740811839103,-500.0,0.00038683,2]
[354906705,1740811839114,-500.0,0.00038683,2]
[354906707,1740811839124,-500.0,0.00038683,2]
[354906709,1740811839134,-500.0,0.00038683,2]
[354906711,1740811839143,-235.43500172,0.00038683,2]
[354906713,1740811839152,-500.0,0.00038683,2]
[354906715,1740811839162,-500.0,0.00038683,2]
[354906717,1740811839171,-500.0,0.00038683,2]
[354906719,1740811839181,-500.0,0.00038684,2]
[354906721,1740811839191,-500.0,0.00038684,2]
[354906723,1740811839200,-500.0,0.00038684,2]
[354906725,1740811839210,-500.0,0.00038684,2]
[354906727,1740811839220,-500.0,0.00038684,2]
[354906728,1740811839230,-500.0,0.00038684,2]
[354906730,1740811839239,-500.0,0.00038684,2]
[354906732,1740811839248,-500.0,0.00038684,2]
[354906734,1740811839258,-500.0,0.00038684,2]
[354906736,1740811839267,-500.0,0.00038684,2]
[354906738,1740811839276,-730.92,0.00038684,2]
[354906740,1740811839286,-500.0,0.00038684,2]
[354906742,1740811839295,-500.0,0.00038684,2]
[354906744,1740811839304,-500.0,0.00038684,2]
[354906746,1740811839314,-500.0,0.00038684,2]
[354906748,1740811839323,-500.0,0.00038684,2]
[354906749,1740811839332,-500.0,0.00038684,2]
[354906751,1740811839342,-500.0,0.00038684,2]
[354906753,1740811839351,-500.0,0.00038684,2]
[354906755,1740811839360,-500.0,0.00038684,2]
[354906757,1740811839370,-500.0,0.00038684,2]
[354906759,1740811839379,-500.0,0.00038684,2]
[354906761,1740811839388,-500.0,0.00038684,2]
[354906763,1740811839398,-1605.55,0.00038684,2]
[354906765,1740811839407,-519.86,0.00038684,2]
[354906767,1740811839416,-500.0,0.00038684,2]
[354906769,1740811839426,-500.0,0.00038684,2]
[354906771,1740811839435,-500.0,0.00038684,2]
[354906773,1740811839445,-500.0,0.00038684,2]
[354906775,1740811839455,-500.0,0.00038684,2]
[354906777,1740811839464,-500.0,0.00038684,2]
[354906779,1740811839474,-500.0,0.00038684,2]
[354906781,1740811839484,-500.0,0.00038684,2]
[354906783,1740811839493,-500.0,0.00038684,2]
[354906785,1740811839502,-500.0,0.00038684,2]
[354906787,1740811839511,-500.0,0.00038684,2]
[354906789,1740811839521,-500.0,0.00038684,2]
[354906791,1740811839530,-588.06,0.00038684,2]
[354906793,1740811839540,-500.0,0.00038684,2]
[354906795,1740811839549,-500.0,0.00038684,2]
[354906797,1740811839558,-500.0,0.00038684,2]
[354906799,1740811839568,-500.0,0.00038684,2]
[354906801,1740811839577,-500.0,0.00038684,2]
[354906803,1740811839588,-500.0,0.00038684,2]
[354906805,1740811839599,-500.0,0.00038684,2]
[354906807,1740811839608,-500.0,0.00038684,2]
[354906809,1740811839617,-500.0,0.00038684,2]
[354906811,1740811839627,-865.34,0.00038684,2]
[354906813,1740811839636,-1191.16,0.00038684,2]
[354906815,1740811839646,-500.0,0.00038684,2]
[354906816,1740811839655,-500.0,0.00038684,2]
[354906818,1740811839664,-500.0,0.00038684,2]
[354906820,1740811839674,-500.0,0.00038684,2]
[354906822,1740811839683,-378.60703363,0.00038684,2]
[354906824,1740811839693,-500.0,0.00038684,2]
[354906826,1740811839702,-333.36093072,0.00038684,2]
[354906828,1740811839711,-500.0,0.00038684,2]
[354906830,1740811839721,-644.81,0.00038684,2]
[354906832,1740811839730,-500.0,0.00038684,2]
[354906834,1740811839739,-917.64,0.00038684,2]
[354906836,1740811839749,-500.0,0.00038684,2]
[354906838,1740811839758,-500.0,0.00038684,2]
[354906840,1740811839767,-500.0,0.00038684,2]
[354906842,1740811839776,-552.5,0.00038684,2]
[354906844,1740811839785,-502.12049362,0.00038684,2]
[354906846,1740811839796,-521.9,0.00038684,2]
[354906848,1740811839805,-809.72,0.00038684,2]
[354906850,1740811839814,-500.0,0.00038684,2]
[354906852,1740811839824,-503.18150938,0.00038684,2]
[354906854,1740811839834,-500.0,0.00038684,2]
[354906856,1740811839844,-500.0,0.00038684,2]
[354906857,1740811839853,-500.0,0.00038684,2]
[354906859,1740811839862,-1363.47,0.00038684,2]
[354906861,1740811839872,-500.0,0.00038684,2]
[354906864,1740811839882,-602.09,0.00038684,2]
[354906865,1740811839892,-500.0,0.00038684,2]
[354906867,1740811839902,-634.56,0.00038684,2]
[354906869,1740811839911,-500.0,0.00038684,2]
[354906871,1740811839921,-500.0,0.00038684,2]
[354906873,1740811839931,-500.0,0.00038684,2]
[354906875,1740811839940,-500.0,0.00038684,2]
[354906877,1740811839950,-695.86,0.00038684,2]
[354906878,1740811839959,-200.0,0.00038684,2]
[354906880,1740811839968,-500.0,0.00038684,2]
[354906882,1740811839978,-500.0,0.00038684,2]
[354906884,1740811839988,-500.0,0.00038684,2]
[354906886,1740811839998,-500.0,0.00038684,2]
[354906888,1740811840007,-500.0,0.00038684,2]
[354906890,1740811840019,-644.57,0.00038684,2]
[354906891,1740811840030,-654.56,0.00038684,2]
[354906893,1740811840040,-500.0,0.00038684,2]
[354906895,1740811840049,-500.0,0.00038684,2]
[354906897,1740811840059,-501.33529888,0.00038684,2]
[354906899,1740811840069,-500.0,0.00038684,2]
[354906901,1740811840079,-676.69,0.00038684,2]
[354906903,1740811840088,-500.0,0.00038684,2]
[354906905,1740811840100,-500.0,0.00038684,2]
[354906907,1740811840109,-500.0,0.00038684,2]
[354906909,1740811840119,-500.0,0.00038684,2]
[354906911,1740811840128,-500.0,0.00038684,2]
[354906913,1740811840138,-11726.64,0.00038684,2]
[354906915,1740811840147,-500.0,0.00038684,2]
[354906917,1740811840157,-500.0,0.00038684,2]
[354906919,1740811840167,-500.0,0.00038684,2]
[354906920,1740811840176,-500.0,0.00038684,2]
[354906922,1740811840185,-500.0,0.00038684,2]
[354906924,1740811840196,-500.0,0.00038684,2]
[354906926,1740811840205,-500.0,0.00038684,2]
[354906928,1740811840215,-500.0,0.00038684,2]
[354906930,1740811840224,-500.0,0.00038684,2]
[354906932,1740811840234,-500.0,0.00038684,2]
[354906934,1740811840244,-500.0,0.00038684,2]
[354906936,1740811840253,-500.0,0.00038684,2]
[354906938,1740811840262,-500.0,0.00038684,2]
[354906940,1740811840272,-500.0,0.00038684,2]
[354906942,1740811840281,-5313.09,0.00038684,2]
[354906944,1740811840291,-500.0,0.00038684,2]
[354906946,1740811840300,-500.0,0.00038684,2]
[354906948,1740811840309,-500.0,0.00038684,2]
[354906950,1740811840318,-2542.86247618,0.00038685,2]
[354906951,1740811840327,-500.0,0.00038693,2]
[354906952,1740811840337,-502.25207241,0.00038693,2]
[354906953,1740811840346,-2813.47,0.00038693,2]
[354906954,1740811840355,-500.0,0.00038693,2]
[354906955,1740811840365,-1884.91,0.00038693,2]
[354906956,1740811840375,-500.0,0.00038693,15]
[354906957,1740811840384,-500.0,0.00038693,15]
[354906959,1740811840394,-177.57226512,0.00038693,15]
[354906960,1740811840403,-491.41743694,0.00038693,15]
[354906962,1740811840413,-503.29943579,0.00038693,2]
[354906964,1740811840423,-500.0,0.00038693,2]
[354906966,1740811840432,-535.45,0.00038693,2]
[354906967,1740811840441,-24961.24,0.00038693,120]
[354906969,1740811840451,-500.0,0.00038693,2]
[354906970,1740811840461,-4114.31,0.00038693,2]
[354906972,1740811840471,-7874.14,0.00038693,2]
[354906973,1740811840480,-3153.12,0.00038693,2]
[354906974,1740811840490,-663.03,0.00038693,2]
[354906975,1740811840499,-1257.99,0.00038693,2]
[354906976,1740811840508,-595.6,0.00038693,2]
[354906977,1740811840518,-500.0,0.00038694,2]
[354906978,1740811840528,-500.0,0.00038694,2]
[354906979,1740811840537,-617.04,0.00038694,2]
[354906980,1740811840546,-746.87,0.00038694,2]
[354906981,1740811840555,-1137.71,0.00038694,2]
[354906982,1740811840565,-500.0,0.00038694,2]
[354906983,1740811840574,-500.0,0.00038694,2]
[354906984,1740811840584,-500.0,0.00038694,2]
[354906985,1740811840593,-601.08,0.00038694,2]
[354906986,1740811840603,-2195.59,0.00038694,2]
[354906987,1740811840612,-518.58,0.00038694,2]
[354906988,1740811840622,-500.0,0.00038694,2]
[354906989,1740811840632,-500.0,0.00038694,2]
[354906990,1740811840643,-2336.14,0.00038694,2]
[354906991,1740811840653,-500.0,0.00038694,2]
[354906992,1740811840662,-500.0,0.00038694,2]
[354906993,1740811840672,-2714.1,0.00038694,2]
[354906994,1740811840682,-500.0,0.00038694,2]
[354906995,1740811840691,-500.0,0.00038694,2]
[354906996,1740811840700,-1650.45,0.00038694,2]
[354906997,1740811840710,-568.28,0.00038694,2]
[354906998,1740811840719,-500.0,0.00038694,2]
[354906999,1740811840729,-933.55,0.00038694,2]
[354907000,1740811840739,-577.12,0.00038694,2]
[354907001,1740811840748,-518.43,0.00038694,2]
[354907002,1740811840758,-156.03870846,0.00038694,2]
[354907003,1740811840767,-500.0,0.00038694,2]
[354907004,1740811840777,-1000.0,0.00038694,2]
[354907005,1740811840786,-500.0,0.00038694,2]
[354907006,1740811840796,-1825.52,0.00038694,2]
[354907007,1740811840805,-502.75208974,0.00038694,2]
[354907008,1740811840816,-500.0,0.00038694,2]
[354907009,1740811840826,-4821.71,0.00038694,2]
[354907010,1740811840836,-1709.97,0.00038694,2]
[354907011,1740811840846,-500.0,0.00038694,2]
[354907012,1740811840856,-2226.61,0.00038694,2]
[354907013,1740811840866,-943.97,0.00038694,2]
[354907014,1740811840876,-9728.52,0.00038694,2]
[354907015,1740811840886,-500.0,0.00038694,2]
[354907016,1740811840896,-500.0,0.00038694,2]
[354907017,1740811840905,-15718.97,0.00038694,2]
[354907018,1740811840915,-500.0,0.00038694,2]
[354907019,1740811840924,-500.0,0.00038694,2]
[354907020,1740811840934,-500.0,0.00038694,2]
[354907021,1740811840943,-502.74423405,0.00038694,2]
[354907022,1740811840953,-500.0,0.00038694,2]
[354907023,1740811840963,-2808.52,0.00038694,2]
[354907024,1740811840972,-4194.48,0.00038694,2]
[354907025,1740811840981,-623.78,0.00038694,2]
[354907026,1740811840991,-839.12,0.00038694,2]
[354907027,1740811841001,-687.0,0.00038694,2]
[354907028,1740811841012,-741.95,0.00038694,2]
[354907029,1740811841024,-1109.45,0.00038694,2]
[354907030,1740811841034,-3010.96,0.00038694,2]
[354907031,1740811841044,-500.0,0.00038694,2]
[354907032,1740811841054,-500.0,0.00038694,2]
[354907033,1740811841064,-2412.9,0.00038694,2]
[354907034,1740811841074,-2538.08,0.00038694,2]
[354907035,1740811841083,-500.0,0.00038694,2]
[354907036,1740811841092,-1117.29,0.00038694,2]
[354907037,1740811841104,-500.0,0.00038694,2]
[354907038,1740811841114,-504.53816094,0.00038694,2]
[354907039,1740811841124,-1681.1,0.00038694,2]
[354907040,1740811841134,-500.0,0.00038694,2]
[354907041,1740811841143,-1712.21,0.00038694,2]
[354907042,1740811841152,-2053.28,0.00038694,2]
[354907043,1740811841162,-500.0,0.00038694,2]
[354907044,1740811841171,-500.0,0.00038694,2]
[354907045,1740811841181,-500.0,0.00038694,2]
[354907046,1740811841191,-500.0,0.00038694,2]
[354907047,1740811841200,-793.88,0.00038694,2]
[354907048,1740811841210,-938.94,0.00038694,2]
[354907049,1740811841220,-1539.94,0.00038694,2]
[354907050,1740811841230,-500.0,0.00038694,2]
[354907051,1740811841239,-695.86,0.00038694,2]
[354907052,1740811841249,-695.86,0.00038694,2]
[354907054,1740811841259,-500.0,0.00038694,2]
[354907055,1740811841268,-695.86,0.00038694,2]
[354907056,1740811841277,-695.86,0.00038694,2]
[354907057,1740811841286,-695.86,0.00038694,2]
[354907058,1740811841296,-695.86,0.00038694,2]
[354907060,1740811841306,-500.0,0.00038694,2]
[354907061,1740811841317,-695.86,0.00038694,2]
[354907062,1740811841327,-695.86,0.00038694,2]
[354907063,1740811841336,-695.86,0.00038694,2]
[354907064,1740811841346,-695.86,0.00038694,2]
[354907065,1740811841355,-695.86,0.00038694,2]
[354907066,1740811841365,-1713.79,0.00038694,2]
[354907067,1740811841375,-650.96,0.00038694,2]
[354907068,1740811841384,-671.96,0.00038694,2]
[354907069,1740811841394,-500.0,0.00038694,2]
[354907070,1740811841403,-504.08768868,0.00038694,2]
[354907071,1740811841413,-500.0,0.00038694,2]
[354907072,1740811841424,-2273.65,0.00038694,2]
[354907073,1740811841434,-987.28,0.00038694,2]
[354907074,1740811841443,-518.59,0.00038694,2]
[354907075,1740811841453,-2982.38,0.00038694,2]
[354907076,1740811841463,-47375.92,0.00038694,2]
[354907077,1740811841474,-815.6,0.00038694,2]
[354907078,1740811841483,-2108.69,0.00038694,2]
[354907079,1740811841493,-1808.48,0.00038694,2]
[354907080,1740811841503,-575.08,0.00038694,2]
[354907081,1740811841513,-969.76,0.00038694,2]
[354907082,1740811841523,-500.0,0.00038694,2]
[354907083,1740811841532,-2364.74,0.00038694,2]
[354907084,1740811841542,-3350.97,0.00038694,2]
[354907085,1740811841551,-1112.11,0.00038694,2]
[354907086,1740811841561,-3034.29,0.00038694,2]
[354907087,1740811841571,-500.0,0.00038694,2]
[354907088,1740811841580,-1761.34,0.00038694,2]
[354907089,1740811841590,-500.0,0.00038694,2]
[354907090,1740811841600,-500.0,0.00038694,2]
[354907091,1740811841610,-500.0,0.00038694,2]
[354907092,1740811841620,-500.0,0.00038694,2]
[354907093,1740811841630,-500.0,0.00038694,2]
[354907094,1740811841640,-151.0,0.00038695,14]
[354907095,1740811841649,-222000.0,0.00038695,2]
[354907096,1740811841659,-7994.83,0.000387,30]
[354907097,1740811841668,-6097.39,0.000387,30]
[354907098,1740811841678,-35000.0,0.000387,14]
[354907099,1740811841688,-35204.7358961,0.000387,12]
[354907100,1740811841699,-151.0,0.000387,20]
[354907101,1740811841710,-151.0,0.000387,15]
[354907102,1740811841720,-151.0,0.000387,15]
[354907103,1740811841730,-151.0,0.000387,19]
[354907104,1740811841739,-151.0,0.000387,10]
[354907105,1740811841749,-151.0,0.000387,11]
[354907106,1740811841759,-3696.64,0.000387,30]
[354907107,1740811841769,-1439.15,0.000387,30]
[354907108,1740811841779,-123201.63,0.000387,30]
[354907109,1740811841788,-880.160901,0.000387,14]
[354907110,1740811841798,-880.160901,0.000387,14]
[354907111,1740811841808,-639.439738,0.000387,14]
[354907112,1740811841818,-639.439738,0.000387,14]
[354907113,1740811841828,-505.924967,0.000387,14]
[354907114,1740811841838,-505.924967,0.000387,14]
[354907115,1740811841847,-2896.699869,0.000387,14]
[354907116,1740811841857,-151.0,0.000387,14]
[354907117,1740811841867,-2896.699869,0.000387,14]
[354907118,1740811841876,-151.0,0.000387,14]
[354907119,1740811841886,-484.35393846,0.0003874,30]
[354907120,1740811841896,-154.01556,0.00038748,4]
[354907121,1740811841906,-151.0,0.00038772,2]
[354907122,1740811841915,-500.0,0.00038772,2]
[354907123,1740811841925,-639.23073795,0.00038773,5]
[354907124,1740811841934,-500.0,0.00038773,5]
[354907125,1740811841943,-500.0,0.00038773,5]
[354907126,1740811841953,-500.0,0.00038773,5]
[354907127,1740811841963,-501.93316386,0.00038773,2]
[354907128,1740811841972,-500.0,0.00038773,5]
[354907129,1740811841982,-503.01819855,0.00038773,5]
[354907130,1740811841991,-500.0,0.00038773,5]
[354907131,1740811842001,-500.0,0.00038773,5]
[354907132,1740811842012,-501.49573493,0.00038773,5]
[354907133,1740811842025,-500.0,0.00038773,5]
[354907134,1740811842035,-500.0,0.00038773,5]
[354907135,1740811842044,-395.312459,0.00038773,2]
[354907136,1740811842053,-500.0,0.00038773,5]
[354907137,1740811842063,-315.09736907,0.00038773,5]
[354907138,1740811842073,-500.0,0.00038773,5]
[354907139,1740811842082,-500.56217372,0.00038773,5]
[354907140,1740811842091,-500.0,0.00038773,5]
[354907141,1740811842103,-500.0,0.00038773,5]
[354907142,1740811842113,-500.0,0.00038773,5]
[354907143,1740811842122,-500.0,0.00038773,5]
[354907144,1740811842132,-500.0,0.00038773,5]
[354907145,1740811842142,-500.0,0.00038773,5]
[354907146,1740811842151,-500.0,0.00038773,5]
[354907147,1740811842161,-500.0,0.00038773,5]
[354907148,1740811842170,-500.0,0.00038773,5]
[354907149,1740811842180,-500.0,0.00038773,5]
[354907150,1740811842190,-500.0,0.00038773,5]
[354907151,1740811842200,-500.0,0.00038773,5]
[354907152,1740811842210,-500.0,0.00038773,5]
[354907153,1740811842219,-500.0,0.00038773,5]
[354907154,1740811842228,-500.0,0.00038773,5]
[354907155,1740811842238,-500.0,0.00038773,5]
[354907156,1740811842248,-506.6658801,0.00038773,5]
[354907157,1740811842257,-500.0,0.00038773,5]
[354907158,1740811842266,-276.86700648,0.00038773,5]
[354907159,1740811842276,-500.0,0.00038773,5]
[354907160,1740811842286,-500.0,0.00038773,2]
[354907161,1740811842295,-3000.0,0.00038786,2]
[354907162,1740811842305,-9944.12857797,0.00038787,2]
[354907163,1740811842314,-695.86,0.00038793,2]
[354907164,1740811842323,-695.86,0.00038793,2]
[354907165,1740811842332,-695.86,0.00038793,2]
[354907166,1740811842342,-695.86,0.00038793,2]
[354907167,1740811842352,-695.86,0.00038793,2]
[354907168,1740811842361,-695.86,0.00038793,2]
[354907169,1740811842371,-695.86,0.00038793,2]
[354907170,1740811842381,-500.0,0.00038794,2]
[354907171,1740811842390,-500.0,0.00038794,2]
[354907172,1740811842399,-500.0,0.00038794,2]
[354907173,1740811842409,-506.9991282,0.00038794,2]
[354907174,1740811842418,-500.0,0.00038794,2]
[354907175,1740811842428,-500.0,0.00038794,2]
[354907176,1740811842437,-500.0,0.00038794,2]
[354907177,1740811842447,-504.77463413,0.00038794,2]
[354907178,1740811842457,-500.0,0.00038794,2]
[354907179,1740811842467,-500.0,0.00038794,2]
[354907180,1740811842477,-500.0,0.00038794,2]
[354907181,1740811842486,-500.0,0.00038794,2]
[354907182,1740811842496,-501.9560277,0.00038794,2]
[354907183,1740811842506,-761.09,0.00038794,2]
[354907184,1740811842516,-500.0,0.00038794,2]
[354907185,1740811842525,-558.34,0.00038794,2]
[354907186,1740811842535,-500.0,0.00038794,2]
[354907187,1740811842545,-500.0,0.00038794,2]
[354907188,1740811842555,-500.0,0.00038794,2]
[354907189,1740811842565,-1292.4,0.00038794,2]
[354907190,1740811842574,-500.0,0.00038794,2]
[354907191,1740811842583,-740.6,0.00038794,2]
[354907192,1740811842593,-910.15,0.00038794,2]
[354907193,1740811842603,-500.0,0.00038794,2]
[354907194,1740811842612,-1651.33,0.00038794,2]
[354907195,1740811842623,-1321.37,0.00038794,2]
[354907196,1740811842632,-500.0,0.00038794,2]
[354907197,1740811842642,-500.0,0.00038794,2]
[354907198,1740811842651,-500.0,0.00038794,2]
[354907199,1740811842660,-639.69965995,0.00038794,2]
[354907200,1740811842670,-500.0,0.00038794,2]
[354907201,1740811842679,-742.58,0.00038794,2]
[354907202,1740811842689,-214.48511903,0.00038794,2]
[354907203,1740811842698,-500.0,0.00038794,2]
[354907204,1740811842707,-830.38,0.00038794,2]
[354907205,1740811842717,-500.0,0.00038794,2]
[354907206,1740811842727,-554.24,0.00038794,2]
[354907207,1740811842736,-1672.58,0.00038794,2]
[354907208,1740811842745,-500.0,0.00038794,2]
[354907209,1740811842755,-502.71714891,0.00038794,120]
[354907210,1740811842765,-500.0,0.00038794,2]
[354907211,1740811842775,-1193.13,0.00038794,2]
[354907212,1740811842784,-1310.15,0.00038794,2]
[354907213,1740811842793,-662.53,0.00038794,2]
[354907214,1740811842803,-500.0,0.00038794,2]
[354907215,1740811842812,-595.32,0.00038794,2]
[354907216,1740811842822,-352.97678927,0.00038794,2]
[354907217,1740811842832,-659.69,0.00038794,2]
[354907218,1740811842841,-620.12,0.00038794,2]
[354907219,1740811842851,-1697.33,0.00038794,2]
[354907220,1740811842862,-500.0,0.00038794,2]
[354907221,1740811842871,-623.34,0.00038794,2]
[354907222,1740811842882,-500.0,0.00038794,2]
[354907223,1740811842892,-500.0,0.00038794,2]
[354907224,1740811842902,-615.17,0.00038794,2]
[354907225,1740811842911,-1472.11,0.00038794,2]
[354907226,1740811842922,-500.0,0.00038794,2]
[354907227,1740811842932,-500.0,0.00038794,2]
[354907228,1740811842941,-500.0,0.00038794,2]
[354907229,1740811842951,-1000.0,0.00038794,60]
[354907230,1740811842961,-500.0,0.00038794,2]
[354907231,1740811842971,-500.0,0.00038794,2]
[354907232,1740811842980,-500.0,0.00038794,2]
[354907233,1740811842990,-500.0,0.00038794,2]
[354907234,1740811843000,-1810.15,0.00038794,2]
[354907235,1740811843010,-1341.57,0.00038794,2]
[354907236,1740811843022,-163.83549975,0.00038794,2]
[354907237,1740811843032,-500.0,0.00038794,2]
[354907238,1740811843042,-512.86,0.00038794,2]
[354907239,1740811843051,-500.0,0.00038794,2]
[354907240,1740811843063,-500.0,0.00038794,2]
[354907241,1740811843072,-500.0,0.00038794,2]
[354907242,1740811843082,-500.0,0.00038794,2]
[354907243,1740811843092,-747.13,0.00038794,2]
[354907244,1740811843103,-500.0,0.00038794,2]
[354907245,1740811843114,-500.0,0.00038794,2]
[354907246,1740811843124,-236.063299,0.00038794,14]
[354907247,1740811843134,-236.063299,0.00038794,14]
[354907248,1740811843144,-500.0,0.00038794,2]
[354907249,1740811843154,-236.063299,0.00038794,14]
[354907250,1740811843164,-236.063299,0.00038794,14]
[354907251,1740811843174,-500.0,0.00038794,2]
[354907252,1740811843184,-500.0,0.00038794,2]
[354907253,1740811843194,-1376.030484,0.00038794,14]
[354907254,1740811843204,-1376.030484,0.00038794,14]
[354907255,1740811843214,-1376.030484,0.00038794,14]
[354907256,1740811843224,-1376.030484,0.00038794,14]
[354907257,1740811843234,-500.0,0.00038794,2]
[354907258,1740811843244,-500.0,0.00038794,2]
[354907259,1740811843254,-502.17304646,0.00038794,2]
[354907260,1740811843264,-992.96,0.00038794,2]
[354907261,1740811843274,-500.0,0.00038794,2]
[354907262,1740811843284,-500.0,0.00038794,2]
[354907264,1740811843293,-2306.22,0.00038794,2]
[354907266,1740811843303,-500.0,0.00038794,2]
[354907268,1740811843314,-2168.4,0.00038794,2]
[354907269,1740811843324,-500.0,0.00038794,2]
[354907270,1740811843334,-209.498159,0.00038794,14]
[354907271,1740811843344,-500.0,0.00038794,2]
[354907272,1740811843354,-1350.29,0.00038794,2]
[354907273,1740811843365,-500.0,0.00038794,2]
[354907274,1740811843375,-502.99100601,0.00038794,2]
[354907276,1740811843385,-658.62,0.00038794,2]
[354907277,1740811843396,-500.0,0.00038794,2]
[354907278,1740811843406,-1048.64,0.00038794,2]
[354907279,1740811843416,-500.0,0.00038794,2]
[354907280,1740811843426,-500.0,0.00038794,2]
[354907281,1740811843436,-375.375274,0.00038794,14]
[354907282,1740811843446,-375.375274,0.00038794,14]
[354907283,1740811843456,-151.0,0.00038794,14]
[354907284,1740811843466,-151.0,0.00038794,14]
[354907285,1740811843476,-500.0,0.00038794,2]
[354907286,1740811843486,-375.375274,0.00038794,14]
[354907287,1740811843496,-375.375274,0.00038794,14]
[354907288,1740811843506,-500.0,0.00038794,2]
[354907289,1740811843516,-151.0,0.00038794,14]
[354907290,1740811843527,-151.0,0.00038794,14]
[354907291,1740811843537,-9075.31,0.00038794,2]
[354907292,1740811843547,-151.0,0.00038794,14]
[354907294,1740811843557,-151.0,0.00038794,14]
[354907296,1740811843567,-432.309548,0.00038794,14]
[354907298,1740811843577,-432.309548,0.00038794,14]
[354907300,1740811843588,-956.44,0.00038794,2]
[354907302,1740811843598,-432.309548,0.00038794,14]
[354907303,1740811843608,-500.0,0.00038794,2]
[354907304,1740811843619,-432.309548,0.00038794,14]
[354907305,1740811843631,-500.0,0.00038794,2]
[354907306,1740811843641,-234.515658,0.00038794,14]
[354907307,1740811843652,-234.515658,0.00038794,14]
[354907308,1740811843662,-560.74,0.00038794,2]
[354907309,1740811843672,-18626.62,0.00038794,2]
[354907310,1740811843682,-234.515658,0.00038794,14]
[354907311,1740811843692,-234.515658,0.00038794,14]
[354907312,1740811843702,-500.0,0.00038794,2]
[354907313,1740811843712,-500.0,0.00038794,2]
[354907314,1740811843723,-842.686336,0.00038794,14]
[354907315,1740811843733,-842.686336,0.00038794,14]
[354907316,1740811843744,-500.0,0.00038794,2]
[354907317,1740811843754,-842.686336,0.00038794,14]
[354907318,1740811843764,-842.686336,0.00038794,14]